bitfinex-derivatives/quotes_SOLF0:USTF0_20240830
["timestamp","ask_amount","ask_price","bid_price","bid_amount"]
[1725024688310,5.64,140.12,140.01,34.27]
[1725024688624,3.61808802,140.09,140.06,0.0458487]
[1725024689316,0.04938802,140.09,140.06,0.0458487]
[1725024690024,68.54,140.07,139.94,34.27]
[1725024690208,34.27,140.03,139.94,34.27]
[1725024690407,3.5705,140.02,139.98,3.5712]
[1725024690613,3.5705,140.02,139.94,34.27]
[1725024690614,3.61491327,140.03,139.94,34.27]
[1725024690913,0.04524045,140.0,139.97,0.04590395]
[1725024691107,0.04524045,140.0,139.99,3.5709]
[1725024691309,0.04524045,140.0,139.97,0.04590395]
[1725024691716,0.04524045,140.0,139.99,3.5711]
[1725024694424,0.04524045,140.0,139.97,0.04590395]
[1725024695519,1.3332,140.06,139.99,34.27]
[1725024695818,34.27,140.1,139.99,37.87493479]
[1725024696019,5.64,140.09,140.01,34.27]
[1725024696416,39.91,140.09,139.99,39.91]
[1725024696614,0.05324636,140.05,140.03,0.05317243]
[1725024697625,3.5698,140.04,140.03,0.05317243]
[1725024698216,5.00074636,140.05,140.03,0.05317243]
[1725024698716,3.62284636,140.05,140.03,0.05317243]
[1725024698919,0.05324636,140.05,140.03,0.05317243]
[1725024701622,0.05324636,140.05,140.03,3.62317243]
[1725024702327,0.05324636,140.05,140.04,3.5698]
[1725024702822,0.05324636,140.05,140.03,0.05317243]
[1725024702823,3.62284636,140.05,140.03,0.05317243]
[1725024703524,0.05324636,140.05,140.03,3.62327243]
[1725024704327,3.5698,140.04,140.03,0.05317243]
[1725024704823,3.62284636,140.05,140.03,0.05317243]
[1725024705823,3.5698,140.04,140.03,0.05317243]
[1725024706522,0.05324636,140.05,139.97,3.5715]
[1725024706523,3.5708,140.01,139.97,3.5715]
[1725024706721,3.5708,140.01,139.94,1.412]
[1725024706924,34.27,140.02,139.94,1.412]
[1725024707123,35.6336,140.04,139.94,41.522]
[1725024707625,0.05458622,140.0,139.98,0.05063084]
[1725024708528,37.78211611,140.06,139.98,0.05063084]
[1725024708926,3.57,140.04,140.0,3.5706]
[1725024709136,37.78211611,140.06,139.96,5.84]
[1725024709326,34.27,140.04,139.96,5.84]
[1725024709528,0.0537408,140.01,139.99,0.0537631]
[1725024710825,0.0537408,140.01,140.0,3.5708]
[1725024711834,0.0537408,140.01,139.99,3.6247631]
[1725024712035,0.0537408,140.01,139.99,0.0537631]
[1725024712940,0.0537408,140.01,139.99,3.6246631]
[1725024713639,0.0537408,140.01,140.0,3.5708]
[1725024714740,0.0537408,140.01,139.99,0.0537631]
[1725024715740,3.5708,140.0,139.99,0.0537631]
[1725024715935,34.3237408,140.01,139.9,43.60590171]
[1725024716244,35.6141,140.01,139.9,34.27]
[1725024716446,3.5714,139.98,139.9,34.27]
[1725024716845,3.5714,139.98,139.91,3.62609554]
[1725024717044,0.05219216,139.96,139.95,3.5721]
[1725024718444,0.05219216,139.96,139.94,3.5723]
[1725024718747,0.05219216,139.96,139.93,0.05080498]
[1725024719046,3.5723,139.95,139.93,0.05080498]
[1725024720746,0.05219216,139.96,139.93,0.05080498]
[1725024721251,3.5723,139.95,139.93,0.05080498]
[1725024721546,0.05219216,139.96,139.93,0.05080498]
[1725024721942,3.5723,139.95,139.93,0.05080498]
[1725024722359,3.5724,139.94,139.93,0.05080498]
[1725024723059,37.8424,139.94,139.93,0.05080498]
[1725024723353,34.27,139.94,139.84,5.84]
[1725024723646,34.27,139.94,139.88,3.5738]
[1725024723848,3.5733,139.91,139.88,3.5738]
[1725024724050,34.27,139.94,139.88,3.5738]
[1725024724251,34.27,139.92,139.83,34.27]
[1725024724547,0.05329954,139.89,139.82,1.4062]
[1725024724951,3.5741,139.88,139.82,1.4062]
[1725024725148,0.05329954,139.89,139.82,1.4062]
[1725024725351,3.5743,139.87,139.83,3.575]
[1725024725544,0.05329954,139.89,139.83,3.575]
[1725024725954,0.05329954,139.89,139.82,1.4062]
[1725024726355,0.05329954,139.89,139.83,34.27]
[1725024726552,3.62699954,139.89,139.86,3.5744]
[1725024726755,0.05329954,139.89,139.83,34.27]
[1725024726953,0.05329954,139.89,139.87,3.574]
[1725024727560,3.62699954,139.89,139.83,35.6026]
[1725024728156,0.05329954,139.89,139.88,3.5739]
[1725024728452,0.05329954,139.89,139.85,34.27]
[1725024728661,0.05329954,139.89,139.83,35.6026]
[1725024729054,0.05329954,139.89,139.82,1.4062]
[1725024729257,3.5739,139.88,139.84,3.5747]
[1725024729850,3.5739,139.88,139.85,3.5747]
[1725024730256,0.05329954,139.89,139.83,34.27]
[1725024730562,0.05329954,139.89,139.85,34.27]
[1725024731367,0.05329954,139.89,139.88,3.5739]
[1725024731756,1.2968,139.95,139.87,37.81371252]
[1725024732650,1.2968,139.95,139.83,1.3093]
[1725024732651,1.2968,139.95,139.86,5.9]
[1725024732857,0.05396884,139.92,139.89,0.0527948]
[1725024733762,0.05396884,139.92,139.89,3.6262948]
[1725024733965,0.05396884,139.92,139.89,0.0527948]
[1725024734563,0.05396884,139.92,139.91,3.5731]
[1725024735657,0.05396884,139.92,139.89,0.0527948]
[1725024736363,0.05396884,139.92,139.91,3.5731]
[1725024737062,0.05396884,139.92,139.9,3.5734]
[1725024738161,0.05396884,139.92,139.91,3.5731]
[1725024741456,0.05396884,139.92,139.89,0.0527948]
[1725024741963,3.62706884,139.92,139.89,3.6262948]
[1725024742266,0.05396884,139.92,139.89,0.0527948]
[1725024743268,0.05396884,139.92,139.91,3.5731]
[1725024743867,0.05396884,139.92,139.89,0.0527948]
[1725024744469,0.05396884,139.92,139.91,3.5731]
[1725024744671,3.5718,139.97,139.91,34.27]
[1725024745171,3.5718,139.97,139.93,3.5724]
[1725024745366,3.5718,139.97,139.91,34.27]
[1725024745669,0.05106712,139.95,139.93,0.04723536]
[1725024745865,0.05106712,139.95,139.93,3.61973536]
[1725024746065,3.5724,139.94,139.93,0.04723536]
[1725024746257,0.05106712,139.95,139.93,0.04723536]
[1725024746666,3.62336712,139.95,139.93,0.04723536]
[1725024748271,3.62336712,139.95,139.93,3.61983536]
[1725024748469,0.05106712,139.95,139.93,3.61983536]
[1725024748867,0.05106712,139.95,139.94,3.5724]
[1725024749072,28.7966,140.04,139.94,27.45]
[1725024749265,28.7966,140.04,139.96,27.45]
[1725024749574,3.5705,140.02,139.98,3.5712]
[1725024749868,2.5615,140.05,139.98,27.45]
[1725024750069,5.9,140.07,140.04,3.5697]
[1725024750374,0.04915196,140.07,140.04,0.05044586]
[1725024750868,27.45,140.06,140.04,0.05044586]
[1725024751167,0.04915196,140.07,140.04,0.05044586]
[1725024751969,0.04915196,140.07,140.04,27.50044586]
[1725024752173,0.04915196,140.07,140.04,0.05044586]
[1725024754375,1.34965196,140.07,140.04,0.05044586]
[1725024754579,3.5696,140.05,140.04,0.05044586]
[1725024754774,1.34965196,140.07,140.04,0.05044586]
[1725024755069,3.5694,140.06,140.04,0.05044586]
[1725024755470,1.34965196,140.07,140.04,0.05044586]
[1725024755672,3.5693,140.06,140.04,0.05044586]
[1725024756075,0.04915196,140.07,140.04,0.05044586]
[1725024756474,34.24,140.06,139.98,5.9]
[1725024756674,3.5699,140.04,139.96,34.24]
[1725024757175,3.5699,140.04,139.98,34.24]
[1725024757370,5.9,140.05,139.98,34.24]
[1725024757571,0.05234103,140.03,140.02,3.5703]
[1725024757778,0.05428817,140.04,140.01,0.0505226]
[1725024758677,0.05428817,140.04,140.03,37.8101]
[1725024759173,1.3851,140.1,140.03,34.24]
[1725024759372,10.868904,140.13,140.04,34.24]
[1725024759568,1.3711,140.13,140.04,34.24]
[1725024759764,3.5679,140.12,140.08,3.5686]
[1725024759966,0.04823098,140.11,140.09,0.05116111]
[1725024760170,0.04823098,140.11,140.09,0.04527235]
[1725024760371,3.61633098,140.11,140.09,0.04527235]
[1725024760780,0.04823098,140.11,140.09,0.04527235]
[1725024762168,0.04823098,140.11,140.09,3.61377235]
[1725024762773,0.04823098,140.11,140.1,3.5683]
[1725024762979,34.24,140.2,140.1,3.5683]
[1725024762980,35.6233,140.2,140.1,34.24]
[1725024763172,35.6233,140.2,140.1,35.546]
[1725024763173,3.5667,140.17,140.1,35.546]
[1725024763376,3.5667,140.17,140.09,5.92]
[1725024763377,41.5433,140.2,140.12,3.5676]
[1725024763579,5.92,140.19,140.09,5.92]
[1725024763885,5.92,140.19,140.11,3.5678]
[1725024764183,0.04587908,140.15,140.13,0.04906504]
[1725024765573,34.24,140.14,140.05,1.2941]
[1725024765774,5.92,140.15,140.06,34.24]
[1725024766089,3.5672,140.15,140.11,3.5679]
[1725024766283,5.92,140.17,140.1,34.24]
[1725024766473,0.04578764,140.15,140.12,0.05011301]
[1725024766778,0.04578764,140.15,140.12,3.61771301]
[1725024767482,0.04578764,140.15,140.12,0.05011301]
[1725024769574,0.04578764,140.15,140.13,3.5674]
[1725024769885,0.04578764,140.15,140.13,34.24]
[1725024770379,0.04578764,140.15,140.12,0.05011301]
[1725024770582,3.61278764,140.15,140.12,3.61771301]
[1725024770978,0.04578764,140.15,140.12,0.05011301]
[1725024771187,3.5675,140.13,140.12,0.05011301]
[1725024772885,3.5685,140.1,140.06,3.5692]
[1725024773091,41.377,140.14,140.03,34.24]
[1725024773287,34.24,140.12,140.02,5.92]
[1725024773583,34.24,140.1,140.01,34.24]
[1725024773779,1.3162,140.09,140.01,34.24]
[1725024773980,3.62256041,140.06,140.04,0.04636884]
[1725024774184,0.05316041,140.06,140.04,0.04636884]
[1725024774683,3.62256041,140.06,140.04,0.04636884]
[1725024774877,0.05316041,140.06,140.04,0.04636884]
[1725024775175,3.5696,140.05,140.04,0.04636884]
[1725024775584,0.05316041,140.06,140.04,0.04636884]
[1725024776789,3.5696,140.05,140.04,0.04636884]
[1725024779905,3.5696,140.05,139.95,2.7337]
[1725024779906,41.377,140.05,139.95,36.9737]
[1725024780191,34.24,140.03,139.95,34.24]
[1725024780491,1.4169,140.04,139.98,3.5713]
[1725024780789,0.04528846,140.02,140.0,0.04628639]
[1725024780983,3.5706,140.01,140.0,0.04628639]
[1725024781182,7.137,140.0,139.88,34.24]
[1725024781486,34.24,139.94,139.84,34.24]
[1725024781692,34.24,139.94,139.82,1.3634]
[1725024781693,1.3347,139.93,139.82,35.6034]
[1725024781987,3.5734,139.9,139.85,3.5745]
[1725024782182,5.92,139.92,139.86,0.0215446]
[1725024782183,0.04698376,139.89,139.86,0.0215446]
[1725024783601,0.04698376,139.89,139.86,3.5957446]
[1725024783895,0.04698376,139.89,139.86,0.0215446]
[1725024784585,0.04698376,139.89,139.86,34.2615446]
[1725024784985,0.04698376,139.89,139.86,0.0215446]
[1725024785187,0.04698376,139.89,139.87,3.5739]
[1725024785386,0.04698376,139.89,139.86,0.0215446]
[1725024785591,0.04698376,139.89,139.88,3.5739]
[1725024785986,0.04698376,139.89,139.86,34.2615446]
[1725024787391,0.04698376,139.89,139.86,0.0215446]
[1725024787795,0.04698376,139.89,139.87,3.574]
[1725024788496,0.04698376,139.89,139.86,0.0215446]
[1725024789197,0.04698376,139.89,139.88,3.5739]
[1725024789387,0.04698376,139.89,139.86,0.0215446]
[1725024789589,0.04698376,139.89,139.86,3.5957446]
[1725024789792,0.04698376,139.89,139.86,0.0215446]
[1725024790895,3.62068376,139.89,139.86,0.0215446]
[1725024791495,0.04698376,139.89,139.86,3.5959446]
[1725024791700,0.04698376,139.89,139.86,0.0215446]
[1725024792101,0.04698376,139.89,139.86,3.5959446]
[1725024792395,0.04698376,139.89,139.86,0.0215446]
[1725024792592,0.04698376,139.89,139.88,3.5739]
[1725024793604,8.5549,139.96,139.92,3.5728]
[1725024793805,2.6549,139.96,139.88,34.24]
[1725024794201,3.5724,139.94,139.9,3.5732]
[1725024794402,3.5724,139.94,139.88,34.24]
[1725024794600,0.04543551,139.92,139.9,0.04647928]
[1725024794907,0.04938865,139.92,139.9,0.04647928]
[1725024795506,0.04938865,139.92,139.91,3.5731]
[1725024797110,15.7975,139.99,139.9,34.24]
[1725024797306,2.7605,139.99,139.9,34.24]
[1725024797604,6.34177717,139.99,139.9,34.24]
[1725024797800,3.5717,139.97,139.93,3.5725]
[1725024798201,0.0460277,139.96,139.94,0.04863983]
[1725024799412,0.0460277,139.96,139.94,3.62093983]
[1725024800209,0.0460277,139.96,139.94,0.04863983]
[1725024800609,0.0460277,139.96,139.95,3.5721]
[1725024800817,369.24,140.06,139.94,34.28863983]
[1725024801107,3.5694,140.06,139.99,34.24]
[1725024801313,3.4821728,140.07,139.99,34.24]
[1725024801500,34.24,140.08,139.97,34.24]
[1725024801702,3.54137503,140.07,139.97,34.24]
[1725024801901,3.54137503,140.07,139.96,3.65745641]
[1725024801902,0.05034307,140.04,140.01,0.05247731]
[1725024802305,1.4132,140.11,140.03,34.24]
[1725024802512,1.3875,140.14,140.05,34.24]
[1725024802714,1.3875,140.14,140.07,34.24]
[1725024803106,1.3875,140.14,140.05,34.24]
[1725024803312,2.6928,140.14,140.05,34.24]
[1725024803511,0.04927321,140.11,140.08,0.04882887]
[1725024804716,0.04927321,140.11,140.08,3.61742887]
[1725024805605,0.04927321,140.11,140.08,0.04882887]
[1725024806805,0.04927321,140.11,140.1,3.5683]
[1725024807722,3.5649043,140.18,140.1,34.24]
[1725024807723,3.5665,140.18,140.1,34.24]
[1725024808222,10.73985382,140.19,140.12,34.24]
[1725024808223,10.7753,140.19,140.12,34.24]
[1725024808414,1.4081,140.2,140.12,34.24]
[1725024808914,0.04592195,140.17,140.15,3.62034499]
[1725024809118,0.04592195,140.17,140.15,0.05354499]
[1725024810111,0.04592195,140.17,140.15,3.62044499]
[1725024810319,0.04592195,140.17,140.15,0.05354499]
[1725024812318,0.04592195,140.17,140.15,3.62034499]
[1725024812621,0.04592195,140.17,140.15,0.05354499]
[1725024813718,0.04592195,140.17,140.16,3.5668]
[1725024815115,0.04592195,140.17,140.15,3.62044499]
[1725024815625,0.04592195,140.17,140.15,0.05354499]
[1725024816219,0.04592195,140.17,140.15,3.62054499]
[1725024816723,0.04592195,140.17,140.15,0.05354499]
[1725024816922,3.61262195,140.17,140.15,0.05354499]
[1725024818027,3.5668,140.16,140.15,0.05354499]
[1725024819021,3.5677,140.13,140.08,34.24]
[1725024819419,3.5677,140.13,140.1,3.5681]
[1725024819617,3.52847131,140.14,140.06,35.5953]
[1725024819926,34.24,140.15,140.1,3.5682]
[1725024820328,3.5677,140.13,140.11,0.05301574]
[1725024820519,0.0515599,140.14,140.11,0.05301574]
[1725024820823,3.69738534,140.14,140.11,0.05301574]
[1725024821028,3.5678,140.12,140.11,0.05301574]
[1725024821632,0.0515599,140.14,140.11,0.05301574]
[1725024824425,3.5678,140.12,140.11,0.05301574]
[1725024825228,3.5691,140.07,140.03,34.24]
[1725024825527,41.377,140.09,139.99,2.753]
[1725024825731,41.377,140.07,140.0,3.5708]
[1725024825925,41.377,140.07,139.99,1.3394]
[1725024826125,41.377,140.07,139.98,86.1451511]
[1725024826328,3.5702,140.03,140.02,0.05051168]
[1725024827330,3.5702,140.03,139.91,34.24]
[1725024827331,41.377,140.03,139.91,34.24]
[1725024827519,34.24,139.97,139.88,34.24]
[1725024827719,34.24,139.95,139.86,34.24]
[1725024828026,34.24,139.95,139.84,37.8147]
[1725024828326,9.74006396,139.97,139.82,1.396]
[1725024828327,3.5734,139.9,139.88,0.04824702]
[1725024828529,3.5734,139.9,139.82,34.24]
[1725024828728,0.05505256,139.9,139.88,0.05212671]
[1725024829025,0.05505256,139.9,139.88,0.04718404]
[1725024829731,0.05505256,139.9,139.8,34.24]
[1725024830031,0.05505256,139.9,139.69,3.2715741]
[1725024830032,34.24,139.89,139.78,34.24]
[1725024830330,34.24,139.87,139.78,34.24]
[1725024830630,34.24,139.87,139.71,1.4047]
[1725024830631,3.5749,139.84,139.76,34.24]
[1725024830823,0.04589574,139.81,139.79,0.0466807]
[1725024831023,0.04935835,139.81,139.79,0.0466807]
[1725024831824,34.24,139.8,139.67,35.6223]
[1725024832027,34.24,139.77,139.68,1.29498014]
[1725024832228,34.24,139.75,139.65,34.24]
[1725024832741,0.05478941,139.71,139.65,34.24]
[1725024833030,0.05478941,139.71,139.67,3.5791]
[1725024833224,0.05478941,139.71,139.63,34.24]
[1725024833421,0.05478941,139.71,139.61,1.3671]
[1725024833422,0.05478941,139.71,139.67,3.5791]
[1725024833626,0.05232436,139.7,139.61,34.24]
[1725024833824,0.045644,139.67,139.61,34.24]
[1725024834028,0.045644,139.67,139.66,3.5795]
[1725024834225,0.045644,139.67,139.63,41.2]
[1725024834932,0.045644,139.67,139.66,3.5795]
[1725024835532,46.1655,139.77,139.71,3.5782]
[1725024835831,6.46,139.76,139.71,3.5782]
[1725024836029,6.46,139.76,139.65,41.2]
[1725024836429,41.2,139.81,139.69,41.2]
[1725024836628,0.04835888,139.76,139.73,0.04652813]
[1725024837434,0.04835888,139.76,139.74,3.5773]
[1725024838627,0.04835888,139.76,139.73,0.04652813]
[1725024839234,0.04835888,139.76,139.75,3.5772]
[1725024839733,0.04835888,139.76,139.73,0.04652813]
[1725024840233,0.04835888,139.76,139.74,3.5773]
[1725024840730,0.04835888,139.76,139.73,0.04652813]
[1725024841037,0.04835888,139.76,139.75,3.5772]
[1725024841337,41.2,139.87,139.74,41.2]
[1725024841539,6.46,139.85,139.74,47.66]
[1725024841841,6.46,139.85,139.77,41.2]
[1725024842034,2.7345,139.9,139.79,41.2]
[1725024842339,0.0510753,139.85,139.83,0.0512453]
[1725024842539,0.05465161,139.85,139.83,0.0512453]
[1725024843128,0.05465161,139.85,139.74,41.2]
[1725024843440,41.2,139.84,139.72,41.2]
[1725024843635,47.66,139.84,139.72,41.2]
[1725024843941,54.797,139.84,139.74,41.2]
[1725024844246,0.05299828,139.8,139.78,0.04983862]
[1725024845129,0.05299828,139.8,139.79,3.5762]
[1725024845837,0.05299828,139.8,139.78,0.04983862]
[1725024846239,0.05299828,139.8,139.79,3.5762]
[1725024846429,0.05299828,139.8,139.78,0.04983862]
[1725024847238,0.05299828,139.8,139.78,41.24983862]
[1725024847568,48.337,139.92,139.78,41.2]
[1725024847843,6.46,139.89,139.79,41.2]
[1725024848046,47.66,139.89,139.79,41.2]
[1725024848346,6.46,139.89,139.79,41.2]
[1725024848533,0.05355789,139.85,139.84,3.5749]
[1725024848733,0.05163484,139.86,139.83,0.05474731]
[1725024850738,3.5749,139.85,139.83,0.05474731]
[1725024851241,3.5749,139.84,139.83,0.05474731]
[1725024851550,13.597,139.84,139.72,41.2]
[1725024851845,3.5763,139.79,139.75,3.577]
[1725024852140,3.62270691,139.81,139.71,1.3393]
[1725024852343,0.05060848,139.77,139.75,41.24681571]
[1725024852658,0.05212315,139.77,139.75,41.25149205]
[1725024853246,3.5756,139.82,139.75,41.2]
[1725024853441,6.46,139.84,139.75,41.2]
[1725024853640,3.5756,139.82,139.78,3.5763]
[1725024853843,2.7378,139.85,139.75,41.2]
[1725024854042,6.46,139.84,139.75,41.2]
[1725024854244,3.5762,139.79,139.78,0.0514734]
[1725024855647,0.04801612,139.81,139.78,0.0514734]
[1725024856449,41.2,139.8,139.78,0.0514734]
[1725024856753,6.46,139.79,139.71,6.46]
[1725024856949,41.2,139.77,139.68,1.2918]
[1725024857145,3.5777,139.74,139.7,3.5784]
[1725024857346,47.66,139.77,139.68,1.2918]
[1725024857347,6.46,139.76,139.68,1.2918]
[1725024857552,6.46,139.76,139.65,41.2]
[1725024857751,0.05162265,139.72,139.69,3.63287098]
[1725024857955,0.05162265,139.72,139.69,0.05427098]
[1725024858154,0.05162265,139.72,139.71,3.5783]
[1725024858361,0.05162265,139.72,139.69,0.05427098]
[1725024858853,0.05162265,139.72,139.71,3.5783]
[1725024859252,47.66,139.79,139.68,41.2]
[1725024859451,3.577,139.76,139.68,41.2]
[1725024859646,3.577,139.76,139.66,1.3186]
[1725024859647,13.597,139.79,139.7,41.2]
[1725024859853,3.5769,139.77,139.7,41.2]
[1725024860047,3.5769,139.77,139.67,41.2]
[1725024860254,0.05076487,139.73,139.71,0.05394365]
[1725024860560,6.46,139.79,139.72,41.2]
[1725024860756,2.5902,139.81,139.72,41.2]
[1725024861148,3.5762,139.8,139.76,3.5768]
[1725024861351,2.5902,139.81,139.76,3.5768]
[1725024861546,0.05401887,139.8,139.76,3.5768]
[1725024861745,0.05401887,139.8,139.77,0.04676739]
[1725024862751,0.05401887,139.8,139.79,3.5762]
[1725024866362,3.5749,139.85,139.78,34.31]
[1725024867559,0.05014828,139.83,139.81,3.5757]
[1725024867861,0.05014828,139.83,139.8,0.04939928]
[1725024868063,0.05014828,139.83,139.81,3.5757]
[1725024868564,0.05014828,139.83,139.8,0.04939928]
[1725024869261,3.5757,139.81,139.8,0.04939928]
[1725024870459,3.5755,139.82,139.8,0.04939928]
[1725024870664,3.55094969,139.83,139.8,0.04939928]
[1725024871062,3.5757,139.81,139.8,0.04939928]
[1725024871658,48.337,139.82,139.72,6.62]
[1725024871854,48.337,139.8,139.71,1.341]
[1725024872057,54.957,139.8,139.75,3.5771]
[1725024872265,3.5763,139.79,139.71,42.541]
[1725024872465,7.137,139.8,139.71,42.541]
[1725024872663,0.05214816,139.77,139.74,0.04813913]
[1725024873061,0.05214816,139.77,139.76,3.577]
[1725024873260,0.05214816,139.77,139.74,0.04813913]
[1725024874071,0.05214816,139.77,139.75,3.5771]
[1725024874467,3.62894816,139.77,139.74,0.04813913]
[1725024874662,0.05214816,139.77,139.74,0.04813913]
[1725024875067,0.05214816,139.77,139.75,3.5772]
[1725024875265,0.05214816,139.77,139.74,0.04813913]
[1725024875464,0.05214816,139.77,139.75,3.5771]
[1725024876074,0.05214816,139.77,139.75,3.5772]
[1725024876671,0.05214816,139.77,139.75,3.5771]
[1725024877272,0.05214816,139.77,139.76,3.577]
[1725024880274,7.137,139.84,139.79,3.576]
[1725024880475,10.7125,139.82,139.73,41.2]
[1725024880882,8.5252,139.85,139.75,41.2]
[1725024881176,0.04720792,139.81,139.79,0.05367647]
[1725024881777,3.576,139.8,139.79,0.05367647]
[1725024882473,3.5772,139.76,139.68,41.2]
[1725024882666,3.5772,139.76,139.68,43.8105]
[1725024883070,7.08,139.79,139.7,41.2]
[1725024883275,7.137,139.8,139.73,3.5777]
[1725024883570,3.62709387,139.78,139.75,0.04664357]
[1725024883974,3.62709387,139.78,139.75,3.62374357]
[1725024884376,0.05049387,139.78,139.75,0.04664357]
[1725024884579,0.05049387,139.78,139.77,3.5767]
[1725024885679,0.05049387,139.78,139.76,3.5769]
[1725024885876,0.05049387,139.78,139.75,0.04664357]
[1725024886380,0.05049387,139.78,139.76,3.5768]
[1725024886578,0.05049387,139.78,139.75,0.04664357]
[1725024887375,0.05049387,139.78,139.75,41.24664357]
[1725024887572,0.05049387,139.78,139.77,3.5767]
[1725024890478,10.7123,139.83,139.79,3.576]
[1725024890983,10.7123,139.83,139.77,41.2]
[1725024890984,7.137,139.83,139.77,41.2]
[1725024891179,7.137,139.84,139.81,3.5755]
[1725024891379,3.5749,139.85,139.79,41.2]
[1725024891582,0.05444858,139.83,139.81,0.05415081]
[1725024891885,0.05444858,139.83,139.82,3.5754]
[1725024892783,3.5741,139.88,139.81,34.3]
[1725024892989,7.137,139.89,139.81,34.3]
[1725024893489,41.437,139.89,139.79,37.95004262]
[1725024893678,0.05068631,139.85,139.83,0.04517413]
[1725024894885,0.05068631,139.85,139.83,3.62017413]
[1725024895085,0.05068631,139.85,139.83,0.04517413]
[1725024895396,34.3,139.94,139.84,34.3]
[1725024895397,7.137,139.92,139.84,34.3]
[1725024895577,1.3079,139.96,139.88,34.3]
[1725024895887,3.5724,139.94,139.88,34.3]
[1725024896186,7.137,139.97,139.9,34.3]
[1725024896387,0.05086891,139.95,139.92,34.34742016]
[1725024896892,0.05086891,139.95,139.93,3.5726]
[1725024897586,0.05086891,139.95,139.92,0.04742016]
[1725024899487,0.05086891,139.95,139.92,34.34742016]
[1725024900883,0.05086891,139.95,139.92,0.04742016]
[1725024901090,0.05086891,139.95,139.92,34.34742016]
[1725024901285,0.05086891,139.95,139.94,3.5724]
[1725024901589,2.6617,140.04,139.93,68.6]
[1725024901893,2.6617,140.04,139.96,34.3]
[1725024902089,36.9617,140.04,139.94,36.9442]
[1725024902293,3.571,140.0,139.96,3.5717]
[1725024902498,0.05456376,139.99,139.97,0.04552613]
[1725024902789,0.04650227,139.99,139.97,0.04552613]
[1725024904593,0.04650227,139.99,139.97,34.34552613]
[1725024905091,0.04650227,139.99,139.98,3.5714]
[1725024905392,0.04650227,139.99,139.97,34.34552613]
[1725024905393,0.04650227,139.99,139.97,0.04552613]
[1725024905798,0.04650227,139.99,139.98,3.5714]
[1725024906089,0.04650227,139.99,139.97,0.04552613]
[1725024906482,3.5714,139.98,139.97,0.04552613]
[1725024906885,4.8661,139.98,139.97,0.04552613]
[1725024907396,1.2947,139.98,139.9,34.3]
[1725024907603,7.137,140.0,139.92,34.3]
[1725024907900,2.6617,140.04,139.94,34.3]
[1725024907901,7.137,140.01,139.94,34.3]
[1725024908288,0.05370304,139.99,139.96,0.04885617]
[1725024908985,0.05370304,139.99,139.98,3.5714]
[1725024909392,0.05370304,139.99,139.96,3.62055617]
[1725024909703,0.05370304,139.99,139.96,0.04885617]
[1725024909886,0.05370304,139.99,139.97,3.5716]
[1725024910590,0.05370304,139.99,139.96,0.04885617]
[1725024910996,3.5715,139.98,139.96,0.04885617]
[1725024911195,0.05370304,139.99,139.96,0.04885617]
[1725024911496,0.05370304,139.99,139.89,1.3107]
[1725024911801,3.62713157,139.98,139.89,1.3107]
[1725024912096,34.3,139.97,139.88,36.9862]
[1725024912300,41.437,139.96,139.84,34.3]
[1725024912496,0.05363583,139.91,139.89,0.053337]
[1725024912799,0.05217957,139.91,139.89,0.053337]
[1725024913106,0.05217957,139.91,139.9,3.5734]
[1725024914199,0.05217957,139.91,139.89,0.053337]
[1725024914396,0.05217957,139.91,139.89,34.353337]
[1725024914593,0.05217957,139.91,139.9,37.8734]
[1725024914799,7.137,139.98,139.9,34.3]
[1725024915108,10.7089,139.96,139.92,3.5727]
[1725024915497,10.7089,139.96,139.9,34.3]
[1725024915795,0.05153457,139.94,139.92,0.05038998]
[1725024917696,3.62403457,139.94,139.92,0.05038998]
[1725024917903,0.05153457,139.94,139.92,0.05038998]
[1725024918591,0.05153457,139.94,139.93,3.5726]